Cogmind - Beta 16.1 @@@ ROGUE MODE // 2026.03.04 @ 16:01:25 Player: Fleshy Vegetable Bird Result: Destroyed by Autobeam Turret with Autobeam Performance ------------- Evolutions (0) 0 Regions Visited (2) 400 Robots Destroyed (38) 190 Value Destroyed (676) 676 Prototype IDs (17) 340 Alien Tech Used (0) 0 Bonus (0) 0 TOTAL SCORE: 1606 Bonus ------- None Cogmind --------- Core Integrity 0/250 Matter 295/300 Energy 100/100 System Corruption 0% Temperature Cool (30) Movement Rolling (125) Ox3 Location -10/Subcaves Parts ------- > --- POWER (1) -------- (None) > --- PROPULSION (2) --- Wheel > --- UTILITY (2) ------ High-capacity Storage Unit > --- WEAPON (2) ------- (None) > --- INVENTORY (20) --- Ion Engine Light Ion Engine Large Storage Unit Huge Storage Unit Subdweller Optics Improved Terrain Scanner Utility Shielding Rainbow Chip Small Laser Small Laser Subdweller Machine Gun Subdweller Machine Gun Multitool Shrapnel Trap Peak State ------------ > --- POWER ------------ Ion Engine > --- PROPULSION ------- Light Treads Wheel > --- UTILITY ---------- High-capacity Storage Unit > --- WEAPON ----------- Grenade Launcher Mining Laser > --- INVENTORY -------- Ion Engine Light Ion Engine Wheel Wheel Large Storage Unit Huge Storage Unit Subdweller Optics Improved Terrain Scanner Utility Shielding Rainbow Chip Medium Laser Small Laser Small Laser Subdweller Machine Gun Multitool [Rating: 9] Favorites ----------- Power Ion Engine Engine Ion Engine Propulsion Wheel Treads Light Treads Wheel Wheel Utility High-capacity Storage Unit Device Seismic Detector Storage High-capacity Storage Unit Weapon Medium Laser Energy Gun Medium Laser Launcher Grenade Launcher Special Weapon Mining Laser Build | -11 -10 -10 ------- Run | Yrd Mat Sub Slots Evolved . | . . . Power . | . . . Propulsion . | . . . Utility . | . . . Weapon . | . . . Parts Attached 22 | 7 12 3 Power 4 | 1 3 . Engine 4 | 1 3 . Core . | . . . Reactor . | . . . Propulsion 9 | 2 5 2 Treads 1 | . 1 . Leg . | . . . Wheel 8 | 2 4 2 Hover . | . . . Flight . | . . . Utility 3 | 2 1 . Device 1 | 1 . . Storage 2 | 1 1 . Processor . | . . . Hackware . | . . . Protection . | . . . Artifact . | . . . Weapon 6 | 2 3 1 Energy Gun 3 | 2 1 . Energy Cannon . | . . . Ballistic Gun . | . . . Ballistic Cannon . | . . . Launcher 1 | . 1 . Special Weapon 2 | . 1 1 Impact Weapon . | . . . Slashing Weapon . | . . . Piercing Weapon . | . . . Special Melee Weapon . | . . . Unidentified Prototypes . | . . . Parts Lost 12 | . 5 7 Power 2 | . 1 1 Propulsion 4 | . 1 3 Utility 1 | . 1 . Weapon 5 | . 2 3 Highest Loss Streak 5 | . 3 5 To Critical Strikes . | . . . Average Backups 10 | 3 9 13 Power 1 | . . 2 Propulsion 2 | 2 3 1 Utility 3 | . 2 5 Weapon 2 | 1 2 3 Tool/Special . | . . . Unused Backups 13 | . 1 12 Power 1 | . . 1 Propulsion 1 | . 1 . Utility 6 | . . 6 Weapon 4 | . . 4 Tool/Special 1 | . . 1 Average Slot Usage (%) 84 | . 84 84 Engine 13 | . 13 14 Treads 9 | . 7 13 Wheel 17 | . 20 14 Storage 14 | . 14 14 Energy Gun 16 | . 20 9 Launcher 9 | . 7 13 Special Weapon 1 | . . 4 Peak Build Rating 9 | 8 8 9 Average Rating 7 | 6 6 8 On Entrance 5 | . 8 7 Avg Prop Armor Cover (%) 11 | . 11 11 Naked Turns . | . . . Heaviest Build 50 | 15 50 50 Greatest Support 20 | 20 20 20 Greatest Overweight (x) 4 | 1 4 4 Average Overweight (x) 2 | . 1 3 Largest Inventory Capacity 20 | 8 20 20 Average Capacity 16 | 7 15 20 Most Carried 15 | 8 12 15 Average Carried 10 | 4 9 13 Final Capacity 20 | 8 20 20 Final Carried 14 | 8 11 14 Class Distribution -------------------- 100% | Mutant Dominant Class ---------------- Mutant | -10/Materials Mutant | -10/Subcaves Resources | -11 -10 -10 ----------- Run | Yrd Mat Sub Matter Collected 550 | 270 180 100 Remotely . | . . . Salvage Created 996 | 165 793 38 Parts 76 | 18 53 5 Haulers Intercepted 1 | . 1 . Recyclers Shooed . | . . . Parts Field Recycled . | . . . Retrieved Matter . | . . . Parts Self-Destructed 9 | . . 9 Prevented . | . . . Parts Restored . | . . . Kills | -11 -10 -10 ------- Run | Yrd Mat Sub Combat Hostiles Destroyed 22 | . 20 2 Guns 15 | . 14 1 AOE 7 | . 6 1 Classes Destroyed 9 | 2 6 1 Worker 2 | . 2 . Tunneler 6 | 4 2 . Hauler 1 | . 1 . Recycler 2 | 1 1 . Operator 3 | . 3 . Watcher 2 | . 2 . Swarmer 9 | . 9 . Grunt 11 | . 11 . Subdweller 2 | . . 2 Best Kill Streak 6 | 4 6 1 Combat Bots Only 5 | . 5 1 Max Kills in Single Turn 2 | 2 2 1 Gunslinging 1 | . 1 . Exploded 2 | . 2 1 Melee . | . . . Uniques/NPCs Destroyed . | . . . Combat | -11 -10 -10 -------- Run | Yrd Mat Sub Hostile Shots Fired 101 | . 75 26 Missed 23 | . 16 7 Hits 78 | . 59 19 Projectile 78 | . 59 19 AOE 4 | . . 4 Damage Taken 1061 | . 599 462 Core 251 | . 115 136 Absorbed by Shields . | . . . Core Remaining (%) 100 | 100 . . Volleys Fired 111 | 13 80 18 Largest 2 | 2 2 2 Hottest 100 | 100 100 100 Shots Fired 182 | 26 135 21 Gun 155 | 26 126 3 Cannon . | . . . Launcher 15 | . 7 8 Special 12 | . 2 10 Kinetic . | . . . Thermal 167 | 26 128 13 Explosive 15 | . 7 8 Electromagnetic . | . . . Robot Hit Streak 18 | 4 18 6 Robot Miss Streak 5 | 4 5 1 Penetration Max . | . . . Secondary Targets 4 | . 4 . Max Gunslinging Chain 1 | . 1 . Shots Hit Robots 98 | 13 79 6 Core Hits 55 | 6 43 6 Critical Kills . | . . . Critical Parts Destroyed . | . . . Critical Strikes 6 | 1 5 . Burn 6 | 1 5 . Melee Attacks . | . . . Impact . | . . . Slashing . | . . . Piercing . | . . . Sneak Attacks . | . . . Combat Hostiles . | . . . Follow-up Attacks . | . . . Damage Inflicted 1778 | 175 1264 339 Guns 1206 | 175 1006 25 Cannons . | . . . Explosions 572 | . 258 314 Melee . | . . . Ramming . | . . . Kinetic . | . . . Thermal 1206 | 175 1006 25 Explosive 572 | . 258 314 Electromagnetic . | . . . Impact . | . . . Slashing . | . . . Piercing . | . . . Highest Corruption . | . . . Average Corruption . | . . . Corruption Purged . | . . . Corruption Blocked . | . . . Overload Shots . | . . . Overflow Damage 10 | . 10 . Projectiles . | . . . Explosions 10 | . 10 . Melee . | . . . Knockbacks . | . . . Impact . | . . . Kinetic . | . . . Secondary . | . . . Self-Inflicted Damage 45 | . 45 . Shots 2 | . 2 . Rammed . | . . . Targets Rammed . | . . . Kicked . | . . . Crushed . | . . . Highest Temperature 313 | 234 313 . Average Temperature 95 | 86 98 . Received Heat Transfer 186 | . 150 36 Effects 3 | . 3 . Energy Bleed 2 | . 2 . Damage (minor) 1 | . 1 . Siege Activations . | . . . Martial Activations . | . . . Shielding Activations . | . . . Robots Disrupted . | . . . Combat Hostiles . | . . . Robots Corrupted . | . . . Combat Hostiles . | . . . Parts Fried . | . . . Impact Corruptions . | . . . Robots Melted . | . . . Combat Hostiles . | . . . Parts Melted 9 | 1 8 . Heat Transferred 3922 | 592 3256 74 Parts Sabotaged . | . . . Parts Stolen . | . . . Parts Stripped . | . . . Power Chain Reactions . | . . . Alert | -11 -10 -10 ------- Run | Yrd Mat Sub Maximum Alert Level . | . . . Low Security (%) 100 | 100 100 . Level 1 . | . . . Level 2 . | . . . Level 3 . | . . . Level 4 . | . . . Level 5 . | . . . High Security . | . . . Max Security . | . . . Peak Influence 159 | 10 159 . Initial . | . . . Average 66 | 1 71 . Influence Increases 694 | 25 639 30 Destroy 0b10 Robot/C 400 | . 400 . Destroy 0b10 Robot/NC 75 | 25 50 . Destroy Leader 76 | . 76 . Successful Hack 20 | . 20 . Disable Machine 15 | . 15 . Destroy Structure 48 | . 48 . Lose Combat Pursuer 60 | . 30 30 Influence Decreases 684 | 25 541 118 Entered New Map 48 | . . 48 Time Decay 515 | 25 440 50 Lost Part 40 | . 20 20 Purge Threat 81 | . 81 . Squads Dispatched 5 | . 5 . Investigation 3 | . 3 . Extermination . | . . . Reinforcement 2 | . 2 . Assault . | . . . Garrison . | . . . Intercept . | . . . Searches Triggered . | . . . Construction Impeded . | . . . Haulers Reinforced . | . . . Active Scanning Responses . | . . . Cargo Convoy Interrupts . | . . . Stealth | -11 -10 -10 --------- Run | Yrd Mat Sub Distress Signals 3 | . 3 . Communications Jammed . | . . . Distress Signals . | . . . Times Spotted 41 | . 33 8 Peak Tracking Total 7 | . 7 5 Tactical Retreats 2 | . 1 1 Traps | -11 -10 -10 ------- Run | Yrd Mat Sub Traps Triggered 3 | . 2 1 Indirectly . | . . . Trap Hack Attempts . | . . . Triggered . | . . . Disarmed . | . . . Reprogrammed . | . . . Reused . | . . . Traps Extracted . | . . . Installed . | . . . Triggered . | . . . Most Traps Carried 1 | . . 1 Machines | -11 -10 -10 ---------- Run | Yrd Mat Sub Machines Disabled 2 | . 1 1 Max in Single Turn 1 | . 1 1 Machines Repaired . | . . . Machines Dismantled . | . . . Machines Sabotaged . | . . . Overloaded Fab Kills . | . . . Hacking | -11 -10 -10 --------- Run | Yrd Mat Sub Machines Accessed 8 | . 6 2 Terminals 6 | . 6 . Fabricators . | . . . Repair Stations . | . . . Recycling Units . | . . . Scanalyzers . | . . . Garrison Access . | . . . Total Hacks 27 | . 18 9 Successful 19 | . 10 9 Failed 8 | . 8 . Catastrophic 3 | . 3 . Database Lockouts . | . . . Manual 15 | . 15 . Terminals 18 | . 18 . Fabricators . | . . . Repair Stations . | . . . Recycling Units . | . . . Scanalyzers . | . . . Garrison Access . | . . . Terminal Hacks 16 | . 7 9 Record 8 | . . 8 Part Schematic 1 | . 1 . Robot Analysis 2 | . 2 . Prototype ID Bank 2 | . 2 . Unreport Threat 1 | . 1 . Recall Reinforcements 1 | . 1 . Proto ID Catalog 1 | . . 1 Fabricator Hacks . | . . . Repair Station Hacks . | . . . Recycling Unit Hacks . | . . . Scanalyzer . | . . . Garrison Access Hacks . | . . . Unauthorized Hacks 3 | . 3 . Terminals 3 | . 3 . Assimilate 1 | . 1 . Botnet 2 | . 2 . Fabricators . | . . . Repair Stations . | . . . Recycling Units . | . . . Scanalyzers . | . . . Garrison Access . | . . . Data Cores Recovered . | . . . Used . | . . . Hacking Detections 6 | . 6 . Full Trace Events 1 | . 1 . Feedback Events . | . . . Feedback Blocked . | . . . Robot Schematics Acquired . | . . . Robots Built . | . . . Authchips . | . . . Time . | . . . Total Robot Build Rating . | . . . Part Schematics Acquired 1 | . 1 . Parts Built . | . . . Authchips . | . . . Time . | . . . Total Part Build Rating . | . . . Part Studies Acquired . | . . . Parts Repaired . | . . . Time . | . . . Parts Recycled . | . . . Recycled Matter . | . . . Retrieved Matter . | . . . Retrieved Components . | . . . Parts Scanalyzed . | . . . Part Schematics Acquired . | . . . Parts Damaged . | . . . Bothacking | -11 -10 -10 ------------ Run | Yrd Mat Sub Used RIF Installer . | . . . Robots Hacked . | . . . Non-combat . | . . . Combat . | . . . Robot Hacks Applied . | . . . Relay Couplers Released . | . . . Fabnet Peak Effective % . | . . . Robots Rewired . | . . . Allies Hacked . | . . . Hacks Repelled . | . . . Allies | -11 -10 -10 -------- Run | Yrd Mat Sub Total Allies 1 | . 1 . Largest Group 1 | . 1 . Highest-Rated Group 10 | . 10 . Highest-Rated Ally 10 | . 10 . Total Orders . | . . . Ally Attacks . | . . . Total Damage . | . . . Kills . | . . . Allies Corrupted . | . . . Allies Melted . | . . . Intel | -11 -10 -10 ------- Run | Yrd Mat Sub Active Infowar (turns) 132 | 83 49 . Seismic 132 | 83 49 . Robot Analysis Total 2 | . 2 . Derelict Logs Recovered 1 | . . 1 Drone Launches . | . . . Drone Recoveries . | . . . Exploration | -11 -10 -10 ------------- Run | Yrd Mat Sub Turns Passed 2534 | 114 1385 1035 Spaces Moved 1655 | 60 910 685 Core 3 | 3 . . Treads . | . . . Legs . | . . . Wheels 1652 | 57 910 685 Hover . | . . . Flight . | . . . Fastest Speed 50 | 50 80 110 Average Speed 119 | 79 106 139 Slowest Speed 140 | 95 140 140 Overloaded Moves . | . . . Propulsion Burnouts . | . . . Robots Hopped . | . . . Potential Cave-ins . | . . . Cave-ins Triggered . | . . . Exploration Rate (%) 46 | 3 97 39 Regions Visited 2 Branch Regions 1 Pre-discovered Areas 2 | . . 2 Known Exits Taken . | . . . Unknown Exits Taken 2 | 1 1 . Scrap Searched 1 | . . 1 Spaces Dug 7 | . 7 . Terrain Destroyed 100 | . 48 52 Melee . | . . . Projectile . | . . . AOE 100 | . 48 52 Terrain Rammed . | . . . Walls Destroyed . | . . . Machines Disabled . | . . . Actions | -11 -10 -10 --------- Run | Yrd Mat Sub Total 2009 | 97 1191 721 Wait 188 | 9 171 8 Move 1653 | 59 909 685 Hop . | . . . Pick Up 25 | 9 10 6 Fast Attach 7 | 6 1 . Attach 8 | 1 4 3 Detach . | . . . Swap 9 | . 8 1 Drop 8 | . 8 . Fire 111 | 13 80 18 Melee . | . . . Ram . | . . . Kick . | . . . Crush . | . . . Escape Stasis . | . . . Rewire . | . . . Trap . | . . . Miscellaneous . | . . . Route ------- -11/Scrapyard -10/Materials (discovered 5 exits: [*Mat x3] / [*Min] / *Sub) -10/Subcaves (discovered 2 exits: [*Rec] / [*Scr]) History --------- Turn | Location | Event 12 | -11/Scrapyard | Discovered new exit (range 16) 115 | -11/Scrapyard | Entered Materials 217 | -10/Materials | Discovered new exit (range 15) 312 | -10/Materials | Build established: Mutant 588 | -10/Materials | Discovered new exit (range 10) 827 | -10/Materials | Lost 3 parts (1p1n1w) 881 | -10/Materials | Discovered new exit (range 13) 967 | -10/Materials | Discovered new exit (range 16) 1490 | -10/Materials | Discovered new exit (range 8) 1500 | -10/Materials | Entered Subcaves 1501 | -10/Subcaves | Approached by a straggling Scientist 1548 | -10/Subcaves | Visited Clippyterm 1552 | -10/Subcaves | Learned location of Extension (-6) 1879 | -10/Subcaves | Learned location of Zion (-7) 1951 | -10/Subcaves | Visited 4L-MR0's lab 1966 | -10/Subcaves | Found Rainbow Chip 2381 | -10/Subcaves | A swath of the cavern ceiling suddenly collapsed 2519 | -10/Subcaves | Shifting Twisted Machinery released Battle Rifle 2528 | -10/Subcaves | Core integrity fell below 50% 2529 | -10/Subcaves | Discovered new exit (range 12) 2535 | -10/Subcaves | Destroyed by Autobeam Turret with Autobeam Last Messages --------------- 02438_ The unstable cave ceiling collapses. 02438_ OM-BN5(R) destroyed. 02444_ Subatomizers dissect the Sub. Machine Gun. 02449_ Acquired Sub. Machine Gun. 02450_ Acquired 14 matter. 02459_ Searching scrap... 02459_ Found Shrapnel Trap. 02459_ Found 65 Matter. 02460_ Acquired 44 matter. 02461_ Acquired Shrapnel Trap. 02464_ The unstable cave ceiling collapses. Battle Rifle falls loose from the Twisted Machinery. 02527_ Grenade Launcher destroyed. 02529_ Med. Laser destroyed. 02529_ Lgt. Treads destroyed. 02529_ EXIT=FOUND 02535_ Wheel destroyed. 02535_ Ion Engine destroyed. Map ----- +----------------------------------------------------+ | ?????????????????????????????????????????????????? | | ?????????????????????????????????????????????????? | | ?????????????????????????????????????????????????? | | ?????????????????????????????????????????????????? | | ?????????????????????????????????????????????????? | | ?????????????????????????????????????????????????? | | ???????????????????????????? ????????????????????? | | ??????????????##??????????? ???????????????????? | | ??????????????# ##???????# " ???????????????????? | | ?????????????? ##?????? " ???????????????????? | | ???????????#### ##????? ???????????????????? | | ?????????## ## #????? R ????????????????????? | | ########## ## #????? ????????????????????? | | ## # # #?# #????? ????????????????????? | | #??# #????? R #????????????????????? | | #### #????? #?##?????????????????? | | # ## ## #?##### ##"#?????????????????? | | #### ### #?????##??????????? | | ??# ##; ##?? ##?????????? | | ??# # #### ; [ ## #?????????? | | ??# ## #### #???????????? | | ?# # ### ## #???????????? | | ##?# #; ##??????????? | | #####??## # "#??????????? | | ##?????# "" ??????????? | | ####??### ## @ ####??????????? | | ##???## ######;#;;;; ##?????????????? | | "###### ##????##### s #??????????????? | | "" #????????? #?????????????? | | #"#""## #????????? #????????????? | | ##"#"""##" #???????## ;;### #???????????? | | ###"""##"## #??????# ;;; #??## #??????????? | | ??##"#"#" "### #??????#;;<;;#????####??????????? | | ?? """##"###?? ##?????? ??????????????????? | | ??"""" ## ?? #??????? ?????????????????? | | ?#### ##? ? ??????? t t ?????????????????? | | ?""""" ##??? # ?????? #????????????????? | | ??"" ##?????# ????? #????????????????? | | ?? " "#??????? ???? "#????????????????? | | ??#?"?????????? ##???## ;???????????????????? | | ???? ?????????? #?????? ?????????????????????? | | ??????????????? #?????????????????????????????? | | ??????????????? ?????????????????????????????????? | | ?????????????????????????????????????????????????? | | ?????????????????????????????????????????????????? | | ?????????????????????????????????????????????????? | | ?????????????????????????????????????????????????? | | ?????????????????????????????????????????????????? | | ?????????????????????????????????????????????????? | | ?????????????????????????????????????????????????? | +----------------------------------------------------+ Best States ------------- Heat Dissipation 25 Energy Generation 10 Energy Capacity 250 Matter Stores 300 Matter Capacity 300 Sight Range 16 Terrain Scan Density 10 Evasion (%) 44 Recoil Reduction 1 Item Schematics ----------------- Lrg. Storage Unit | -10/Materials | Hacked Robot Schematics ------------------ None Fabricated ------------ Nothing Repaired ---------- Nothing Studied --------- None Alien Tech Used ----------------- None Achievements -------------- None Challenges ------------ None Game ------ Seed HugeHypertargetingPit Manual? 0 Play Time 00:16:34 Cumulative 413.0 hours Start 2026.03.04 @ 15:44:45 End 2026.03.04 @ 16:01:25 Sessions 1 Manual Loads 0 Difficulty Rogue Special Mode None Game No. 463 Rogue 463 Adventurer 0 Explorer 0 Win Type - Total 6 Types 3/1/1/1/0/0/0/0/0/0 Lore% 76 Gallery% 68 Achievement% 45 Wizard Run 0 Options --------- Layout 1 ASCII 0 Keyboard 0 Movement Numpad Keybinds 0 Fullscreen 1 Font 32/SmallcapsGlow Map View 50x35 Zoom Use 0% Tactical HUD 1 Map Filters NONE Filters NONE Steam 1 RUN: 802f51dc-ae7c-4cd2-a977-2612dbb57fbc